bitfinex/quotes_ETHUSD_20250904
["timestamp","ask_amount","ask_price","bid_price","bid_amount"]
[1756983217624,12.73238392,4433.9,4433.8,0.001]
[1756983219441,13.03328392,4433.9,4433.8,0.001]
[1756983220537,9.21428392,4433.9,4433.8,0.001]
[1756983220836,13.03128392,4433.9,4433.8,0.001]
[1756983221541,22.3704203,4433.9,4433.8,0.001]
[1756983226428,22.0695203,4433.9,4433.8,0.001]
[1756983227059,22.3704203,4433.9,4433.8,0.001]
[1756983227540,12.72538392,4433.9,4433.8,0.3127]
[1756983227861,19.79661233,4433.9,4433.8,0.3127]
[1756983228631,20.99901233,4433.9,4433.8,0.001]
[1756983229281,11.22047595,4433.9,4433.8,0.001]
[1756983229478,13.48838392,4433.9,4433.8,0.001]
[1756983229678,13.02628392,4433.9,4433.8,0.001]
[1756983230566,6.04740168,4433.8,4433.7,0.001]
[1756983230767,7.43422682,4433.8,4433.7,0.001]
[1756983230943,7.73512682,4433.8,4433.7,0.001]
[1756983231136,8.9120319,4433.8,4433.7,0.001]
[1756983232578,9.02556169,4433.8,4433.7,0.001]
[1756983233047,8.54023655,4433.8,4433.7,0.001]
[1756983233245,9.02765784,4433.8,4433.7,0.001]
[1756983234846,3.792,4433.7,4433.3,0.001]
[1756983235065,15.38674155,4433.4,4433.3,0.001]
[1756983235266,19.69016284,4433.4,4433.3,0.001]
[1756983235465,5.74302646,4433.4,4433.3,0.7847]
[1756983235671,18.89916284,4433.4,4433.3,1.2587]
[1756983236367,19.98563269,4433.4,4433.3,1.2587]
[1756983236572,19.98663269,4433.4,4433.3,1.2587]
[1756983238183,20.77863269,4433.4,4433.3,0.3127]
[1756983238393,20.77863269,4433.4,4433.3,0.001]
[1756983238758,21.07953269,4433.4,4433.3,0.001]
[1756983239590,21.54163269,4433.4,4433.3,0.001]
[1756983240360,22.00293269,4433.4,4433.3,0.001]
[1756983240786,21.54163269,4433.4,4433.3,0.001]
[1756983241161,22.00293269,4433.4,4433.3,0.001]
[1756983244577,21.99893269,4433.4,4433.3,0.001]
[1756983244780,3.04770693,4433.2,4433.1,0.001]
[1756983244977,14.39183619,4433.2,4433.1,0.001]
[1756983245199,15.65053619,4433.2,4433.1,0.001]
[1756983245500,15.18923619,4433.2,4433.1,0.001]
[1756983245804,6.04775782,4433.1,4433.0,0.001]
[1756983246006,15.87431549,4433.1,4433.0,0.001]
[1756983246201,18.21948534,4433.1,4433.0,0.001]
[1756983246409,18.30994205,4433.1,4433.0,0.001]
[1756983249008,18.30994205,4433.1,4432.4,0.001]
[1756983249009,29.88459306,4433.1,4432.4,0.001]
[1756983249207,5.25596137,4432.7,4432.4,0.001]
[1756983249381,19.80131904,4432.7,4432.4,0.001]
[1756983249582,22.00704022,4432.7,4432.6,0.3059]
[1756983249882,22.00804022,4432.7,4432.6,1.2208]
[1756983250181,15.98731904,4432.7,4432.6,1.2208]
[1756983250377,9.67118266,4432.7,4432.6,1.2208]
[1756983250906,19.01031904,4432.7,4432.6,1.2208]
[1756983251407,29.45775542,4432.7,4432.6,0.001]
[1756983251607,32.66806339,4432.7,4432.6,0.001]
[1756983251779,32.55526339,4432.7,4432.6,0.001]
[1756983251977,31.61286339,4432.7,4432.6,0.001]
[1756983252210,22.27372701,4432.7,4432.6,0.001]
[1756983253082,0.792,4432.5,4431.0,0.4586]
[1756983253394,3.04841951,4431.8,4430.6,0.4563]
[1756983253702,20.01127718,4431.8,4430.6,0.4563]
[1756983253886,20.95367718,4431.8,4430.6,0.4563]
[1756983254083,23.22158515,4431.8,4430.6,0.4563]
[1756983254285,23.67788515,4431.8,4430.6,0.4563]
[1756983254480,23.21658515,4431.8,4429.1,2.25776394]
[1756983254684,0.792,4430.0,4428.7,0.4563]
[1756983254902,6.04936918,4430.0,4429.9,0.3049]
[1756983255106,19.69763689,4430.0,4429.9,0.3049]
[1756983255278,20.37646284,4430.0,4429.9,0.7612]
[1756983255490,20.37646284,4430.0,4429.9,0.3049]
[1756983255716,2.25748922,4429.7,4429.6,0.4586]
[1756983255901,15.90575693,4429.7,4429.6,0.9149]
[1756983256104,15.90575693,4429.7,4429.6,1.2198]
[1756983257428,6.87148922,4429.7,4429.6,1.2198]
[1756983257587,12.3886256,4429.7,4429.6,1.2198]
[1756983257786,16.2106256,4429.7,4429.6,1.2198]
[1756983258086,2.25668922,4429.7,4429.6,1.2198]
[1756983260499,3.04868922,4429.7,4429.6,1.2198]
[1756983260700,2.25668922,4429.7,4429.6,1.2198]
[1756983261811,2.36948922,4429.7,4429.6,0.3049]
[1756983262016,2.36948922,4429.7,4429.6,0.7612]
[1756983262310,6.19248922,4429.7,4429.6,0.3049]
[1756983262511,8.33907716,4429.7,4429.6,0.3049]
[1756983264228,7.19068794,4429.7,4428.6,2.1193]
[1756983264403,7.19068794,4429.7,4428.9,0.4586]
[1756983264404,2.25784601,4429.0,4428.9,0.4586]
[1756983264599,2.25777476,4429.2,4428.9,0.4586]
[1756983264600,2.25778329,4429.2,4428.9,0.4586]
[1756983264805,0.1128,4429.0,4428.9,0.7635]
[1756983265196,0.79166282,4429.0,4428.9,1.2198]
[1756983266014,2.25745913,4429.8,4428.9,1.2198]
[1756983266231,0.1128,4429.4,4429.0,0.9149]
[1756983266526,2.37044211,4429.4,4429.3,0.3049]
[1756983266727,2.37044211,4429.4,4429.3,1.2198]
[1756983268247,2.37044211,4429.4,4429.3,0.7612]
[1756983268450,2.37044211,4429.4,4429.3,0.3049]
[1756983268451,2.90111899,4429.4,4429.3,0.3049]
[1756983268772,2.25774406,4429.2,4429.1,0.001]
[1756983268914,14.59688044,4429.2,4429.1,0.001]
[1756983269113,14.70968044,4429.2,4429.1,0.001]
[1756983269336,16.90966377,4429.2,4429.1,0.001]
[1756983269706,16.90966377,4429.2,4429.1,0.3059]
[1756983270907,20.73166377,4429.2,4429.1,0.001]
[1756983271102,21.02406377,4429.2,4429.1,0.001]
[1756983271354,22.30020476,4429.2,4429.1,0.001]
[1756983273022,9.13906838,4429.2,4429.1,0.001]
[1756983273262,12.66766838,4429.2,4429.1,0.001]
[1756983273436,22.00680476,4429.2,4429.1,0.001]
[1756983274341,22.29820476,4429.2,4429.1,0.001]
[1756983276357,9.13906838,4429.2,4429.1,0.001]
[1756983276526,2.74188505,4429.2,4429.1,1.2081]
[1756983276720,2.85468505,4429.2,4429.1,1.2081]
[1756983278921,5.85468505,4429.2,4429.1,1.2081]
[1756983279128,15.19382143,4429.2,4429.1,0.001]
[1756983279333,17.36670404,4429.2,4429.1,0.001]
[1756983280262,18.15870404,4429.2,4429.1,0.001]
[1756983280625,18.15870404,4429.2,4429.1,0.2885]
[1756983280923,21.97970404,4429.2,4429.1,0.2885]
[1756983281563,12.64056766,4429.2,4429.1,0.2885]
[1756983281864,12.64056766,4429.2,4429.1,0.001]
[1756983282077,12.93296766,4429.2,4429.1,0.001]
[1756983282245,13.40576766,4429.2,4429.1,0.001]
[1756983282433,2.25794797,4428.8,4428.7,0.001]
[1756983282635,18.13377203,4428.8,4428.7,0.001]
[1756983282842,18.42617203,4428.8,4428.7,0.001]
[1756983283174,22.57795469,4428.8,4428.7,0.001]
[1756983283482,22.57715469,4428.8,4428.7,0.001]
[1756983283663,24.7500373,4428.8,4428.7,0.001]
[1756983283846,2.25850893,4427.7,4427.6,0.438]
[1756983284046,5.74264992,4427.7,4427.6,0.9196]
[1756983284266,5.85544992,4427.7,4427.6,1.2071]
[1756983284435,3.59694099,4427.7,4427.6,1.2071]
[1756983284633,0.48414099,4427.7,4427.6,1.44061]
[1756983284955,0.48414099,4427.7,4427.6,3.69916994]
[1756983285331,0.67891658,4428.5,4427.6,1.44061]
[1756983285570,0.48700095,4428.4,4428.2,2.25824298]
[1756983285752,0.48700095,4428.3,4428.2,2.70990486]
[1756983285952,0.48700095,4428.3,4428.2,1.9515]
[1756983286365,0.48700095,4428.3,4428.2,2.8711]
[1756983286951,0.48700095,4428.3,4428.2,2.8721]
[1756983290895,0.48700095,4428.3,4428.2,5.13035391]
[1756983291778,3.1128,4429.1,4428.4,2.25813375]
[1756983291958,2.37059503,4429.1,4429.0,0.2875]
[1756983292159,2.85776388,4429.1,4429.0,0.7255]
[1756983292370,6.53660058,4429.1,4429.0,0.2875]
[1756983292556,2.25792854,4428.9,4428.7,0.438]
[1756983292764,0.48716885,4428.8,4428.5,3.9528]
[1756983293074,0.48716885,4428.7,4428.5,4.3908]
[1756983293389,0.48716885,4428.6,4428.5,3.9528]
[1756983293592,0.48716885,4428.6,4428.5,4.4344]
[1756983293797,0.48716885,4428.6,4428.5,4.7219]
[1756983293962,0.48716885,4428.6,4428.5,5.1599]
[1756983294471,0.48729839,4428.6,4428.5,5.1599]
[1756983298305,0.48729839,4428.6,4428.5,4.2403]
[1756983300323,0.48729839,4428.6,4428.5,5.81969]
[1756983300526,0.6788367,4428.8,4428.7,2.25799896]
[1756983300677,0.48739428,4428.8,4428.7,2.25799896]
[1756983300971,0.48735968,4429.2,4428.7,1.2324]
[1756983301176,0.48735968,4429.6,4429.1,0.1128]
[1756983301376,0.48735968,4429.5,4429.2,4.3055]
[1756983301578,2.37229377,4429.7,4429.2,4.3055]
[1756983301809,0.48715655,4429.6,4429.2,4.3055]
[1756983302013,0.48715655,4429.5,4429.2,4.3055]
[1756983302214,0.48715655,4429.4,4429.2,3.835]
[1756983302391,2.74478527,4429.5,4429.2,3.835]
[1756983302581,0.48715655,4429.4,4429.2,3.835]
[1756983303093,3.03448149,4429.3,4429.0,1.664]
[1756983303300,2.25779503,4429.1,4429.0,1.664]
[1756983303610,3.03458344,4429.1,4429.0,5.498]
[1756983304811,3.03458344,4429.1,4428.3,2.72838997]
[1756983304812,3.0,4429.0,4428.9,3.834]
[1756983305014,7.26777674,4429.0,4428.9,3.834]
[1756983305192,7.38057674,4429.0,4428.9,3.834]
[1756983305583,7.83347674,4429.0,4428.9,3.834]
[1756983306005,2.25790085,4428.9,4428.3,1.664]
[1756983306181,0.48708841,4428.8,4428.3,5.5]
[1756983306507,2.74508737,4428.7,4428.3,5.5]
[1756983306717,2.74516697,4428.6,4428.3,5.5]
[1756983306920,0.48708841,4428.5,4428.3,5.9705]
[1756983307282,0.48708841,4428.5,4428.4,0.2917]
[1756983307481,2.74518934,4428.5,4428.3,5.5]
[1756983307808,0.77685802,4428.4,4428.3,5.5]
[1756983308024,5.25820292,4428.3,4428.2,0.001]
[1756983308188,5.74535382,4428.3,4428.2,0.001]
[1756983308390,6.03505382,4428.3,4428.2,0.001]
[1756983308711,5.74535382,4428.3,4428.2,0.2927]
[1756983308911,5.74455382,4428.3,4428.2,0.2927]
[1756983309682,0.4871509,4428.3,4428.2,0.2927]
[1756983310016,3.03505382,4428.3,4428.2,0.001]
[1756983310193,6.03505382,4428.3,4428.2,0.001]
[1756983311013,6.71401497,4428.3,4428.2,0.001]
[1756983311310,7.20281497,4428.3,4428.2,0.001]
[1756983311513,7.70539697,4428.3,4428.2,0.001]
[1756983312180,8.64709697,4428.3,4428.2,0.001]
[1756983315385,8.19419697,4428.3,4428.2,0.001]
[1756983315587,1.16611205,4428.3,4428.2,0.7632]
[1756983315787,0.7768509,4428.3,4428.2,0.001]
[1756983316111,3.7140457,4428.3,4428.2,0.001]
[1756983316307,6.61964915,4428.3,4428.2,0.001]
[1756983318018,6.16674915,4428.3,4428.2,0.001]
[1756983318224,10.01474915,4428.3,4428.2,0.001]
[1756983318423,9.63874915,4428.3,4428.2,0.001]
[1756983318727,10.57944915,4428.3,4428.2,0.001]
[1756983318921,6.27954915,4428.3,4428.2,0.001]
[1756983319101,10.12654915,4428.3,4428.2,0.001]
[1756983319424,10.57844915,4428.3,4428.2,0.001]
[1756983320712,14.37044915,4428.3,4428.2,0.001]
[1756983322044,14.37244915,4428.3,4428.2,0.001]
[1756983322250,6.14925391,4428.2,4428.1,0.001]
[1756983322434,23.1301341,4428.2,4428.1,0.001]
[1756983322753,23.4198341,4428.2,4428.1,0.001]
[1756983328135,23.4198341,4428.2,4427.7,0.001]
[1756983328136,6.05045792,4427.8,4427.7,0.001]
[1756983328340,21.16029189,4427.8,4427.7,0.001]
[1756983328535,22.74402004,4427.8,4427.7,0.001]
[1756983328758,23.21422004,4427.8,4427.7,0.001]
[1756983329160,8.70433697,4427.8,4427.7,0.001]
[1756983329358,22.76232004,4427.8,4427.7,0.001]
[1756983330042,23.21522004,4427.8,4427.7,0.001]
[1756983330236,19.37122004,4427.8,4427.7,0.001]
[1756983330571,23.20862004,4427.8,4427.7,0.001]
[1756983331435,23.49208942,4427.8,4427.7,0.001]
[1756983332864,23.20862004,4427.8,4427.7,0.001]
[1756983334392,3.792,4427.4,4427.3,0.001]
[1756983334561,22.07345703,4427.4,4427.3,0.001]
[1756983334762,23.28125703,4427.4,4427.3,0.001]
[1756983335485,6.77357396,4427.4,4427.3,0.2874]
[1756983335786,10.61357396,4427.4,4427.3,1.1893]
[1756983335986,10.61357396,4427.4,4427.3,0.719]
[1756983336189,10.61357396,4427.4,4427.3,0.2874]
[1756983336394,11.40557396,4427.4,4427.3,0.2874]
[1756983336688,6.69861286,4427.4,4427.3,1.1893]
[1756983336891,10.49061286,4427.4,4427.3,1.1893]
[1756983337473,7.49061286,4427.4,4427.3,1.1893]
[1756983337676,10.49061286,4427.4,4427.3,1.1893]
[1756983338602,5.85861286,4427.4,4427.3,1.1893]
[1756983340688,3.5999509,4427.4,4427.3,1.1893]
[1756983341065,3.4871509,4427.4,4427.3,1.1893]
[1756983341462,5.74581286,4427.4,4427.3,1.1893]
[1756983341885,0.4871509,4427.4,4427.3,1.1893]
[1756983342105,1.27900425,4427.6,4427.3,1.30823]
[1756983342265,0.4871509,4427.5,4427.4,0.4316]
[1756983342589,3.77801647,4427.7,4427.4,0.9019]
[1756983342789,0.4871509,4427.6,4427.5,0.9019]
[1756983342990,0.4871509,4427.6,4427.3,1.89673]
[1756983343297,2.74571247,4427.6,4427.5,0.2864]
[1756983343477,0.4871509,4427.6,4427.5,0.2864]
[1756983343867,0.4871509,4427.6,4427.5,1.1883]
[1756983344373,2.74571084,4427.6,4427.5,1.1883]
[1756983344565,2.85851084,4427.6,4427.5,1.1883]
[1756983345576,0.5999509,4427.6,4427.5,1.1883]
[1756983345889,2.85851084,4427.6,4427.5,1.1883]
[1756983347599,12.22047272,4427.6,4427.5,1.1883]
[1756983349185,9.96191278,4427.6,4427.5,0.2864]
[1756983350000,12.22047272,4427.6,4427.5,0.2864]
[1756983350201,12.22047272,4427.6,4427.5,0.718]
[1756983350568,12.22047272,4427.6,4427.5,0.2864]
[1756983351003,12.22047272,4427.6,4427.5,0.718]
[1756983351805,12.22047272,4427.6,4427.5,1.1883]
[1756983352006,12.22047272,4427.6,4427.5,0.718]
[1756983352892,12.89956604,4427.6,4427.5,0.718]
[1756983353606,3.53760416,4427.6,4427.5,1.1883]
[1756983354918,3.53760416,4427.6,4427.5,0.2864]
[1756983355301,3.53760416,4427.6,4427.5,0.718]
[1756983355610,3.53720584,4427.6,4427.5,0.718]
[1756983355808,3.53720584,4427.6,4427.5,0.618]
[1756983356714,1.2786459,4427.6,4427.5,0.618]
[1756983357013,3.53720584,4427.6,4427.5,1.0883]
[1756983357603,3.53720584,4427.6,4427.5,0.618]
[1756983358009,3.53720584,4427.6,4427.5,0.1864]
[1756983358753,3.53720584,4427.6,4427.5,0.1904]
[1756983359726,3.53640584,4427.6,4427.5,0.1904]
[1756983360440,3.53640584,4427.6,4427.5,0.6551]
[1756983360441,1.2778459,4427.6,4427.5,0.6551]
[1756983360647,1.2778459,4427.6,4427.5,1.1352]
[1756983361117,3.53640584,4427.6,4427.5,1.1352]
[1756983362942,1.2778459,4427.6,4427.5,1.1352]
[1756983363445,1.2778459,4427.6,4427.5,0.6551]
[1756983364943,1.2778459,4427.6,4427.5,1.1352]
[1756983365242,0.59875258,4427.6,4427.5,1.1352]
[1756983365448,2.85731252,4427.6,4427.5,0.6551]
[1756983366239,2.85731252,4427.6,4427.5,0.1904]
[1756983368233,0.59875258,4427.6,4427.5,0.1904]
[1756983371234,2.85731252,4427.6,4427.5,0.1904]
[1756983371437,0.59875258,4427.6,4427.5,0.1904]
[1756983372327,0.59875258,4427.6,4427.5,4.0124]
[1756983374631,0.59875258,4427.6,4427.5,4.9572]
[1756983375344,0.59875258,4427.6,4427.5,4.0124]
[1756983376441,0.48675258,4427.6,4427.5,4.9572]
[1756983376626,0.48675258,4427.6,4427.5,8.11518678]
[1756983376822,0.1,4427.7,4427.6,2.25855994]
[1756983377025,0.1,4427.7,4427.6,2.72325994]
[1756983377341,0.1,4427.7,4427.6,3.50755994]
[1756983377642,0.1,4427.7,4427.6,4.73449461]
[1756983379442,2.25855994,4427.6,4427.5,0.004]
[1756983379614,3.67278523,4427.6,4427.5,3.826]
[1756983379812,3.97288523,4427.6,4427.5,3.826]
[1756983380121,4.65196471,4427.6,4427.5,3.826]
[1756983385353,4.65116471,4427.6,4427.5,0.004]
[1756983385550,6.28832412,4427.6,4427.5,3.826]
[1756983385756,5.80622412,4427.6,4427.5,3.826]
[1756983386265,5.36162412,4427.6,4427.5,3.826]
[1756983388551,5.80622412,4427.6,4427.5,3.826]
[1756983388772,8.80622412,4427.6,4427.5,0.004]
[1756983389056,9.28832412,4427.6,4427.5,0.004]
[1756983389221,18.650286,4427.6,4427.5,0.004]
[1756983389425,18.763086,4427.6,4427.5,0.004]
[1756983396483,19.549486,4427.6,4427.5,0.004]
[1756983398191,2.25866196,4427.4,4427.3,0.001]
[1756983398355,9.56818725,4427.4,4427.3,0.001]
[1756983398550,20.57964913,4427.4,4427.3,0.001]
[1756983399086,21.01864913,4427.4,4427.3,0.001]
[1756983399288,20.47996958,4427.4,4427.3,0.001]
[1756983399582,22.11712899,4427.4,4427.3,0.001]
[1756983402280,21.67812899,4427.4,4427.3,0.001]
[1756983403180,22.11712899,4427.4,4427.3,0.001]
[1756983403558,23.43365092,4427.4,4427.3,0.001]
[1756983410567,23.43285092,4427.4,4427.3,0.001]
[1756983411299,6.05071298,4427.3,4426.8,0.004]
[1756983411497,15.93740088,4426.9,4426.8,0.004]
[1756983411666,20.53552617,4426.9,4426.8,0.004]
[1756983411866,9.56844236,4426.9,4426.8,0.2993]
[1756983412096,10.36044236,4426.9,4426.8,0.7715]
[1756983412295,11.5544481,4426.9,4426.8,0.2993]
[1756983412508,11.5544481,4426.9,4426.8,0.004]
[1756983412673,11.8430481,4426.9,4426.8,0.004]
[1756983413669,8.0210481,4426.9,4426.8,0.004]
[1756983413873,11.8430481,4426.9,4426.8,0.004]
[1756983415497,12.7381481,4426.9,4426.8,0.004]
[1756983416570,7.7324481,4426.9,4426.8,0.2993]
[1756983416766,11.8430481,4426.9,4426.8,0.004]
[1756983418503,11.5544481,4426.9,4426.8,0.004]
[1756983418804,11.5544481,4426.9,4426.8,0.7715]
[1756983418968,7.7324481,4426.9,4426.8,0.2993]
[1756983419174,11.5544481,4426.9,4426.8,0.2993]
[1756983419369,12.2820481,4426.9,4426.8,0.004]
[1756983419599,7.7324481,4426.9,4426.8,0.004]
[1756983419906,11.5544481,4426.9,4426.8,0.2993]
[1756983420377,6.9404481,4426.9,4426.8,0.2993]
[1756983420578,0.48752529,4426.9,4426.8,1.2078]
[1756983427513,13.42492617,4426.9,4426.8,0.004]
[1756983427696,13.42492617,4426.9,4426.8,0.3079]
[1756983428008,6.03404236,4426.9,4426.8,0.004]
[1756983428210,6.86333136,4426.9,4426.8,0.004]
[1756983429199,7.30093136,4426.9,4426.8,0.004]
[1756983429407,7.77973136,4426.9,4426.8,0.004]
[1756983430606,7.89253136,4426.9,4426.8,0.004]
[1756983430795,7.45493136,4426.9,4426.8,0.004]
[1756983430996,7.89253136,4426.9,4426.8,0.004]
[1756983431612,11.71453136,4426.9,4426.8,0.004]
[1756983432009,12.50653136,4426.9,4426.8,0.004]
[1756983432212,23.18501517,4426.9,4426.8,0.004]
[1756983434795,6.05117223,4426.4,4426.3,0.004]
[1756983435001,10.47349752,4426.4,4426.3,0.004]
[1756983435200,10.76109752,4426.4,4426.3,0.004]
[1756983435513,12.03435709,4426.4,4426.3,0.004]
[1756983436019,12.03355709,4426.4,4426.3,0.004]
[1756983436202,11.24155709,4426.4,4426.3,0.004]
[1756983436399,10.95395709,4426.4,4426.3,0.004]
[1756983436613,9.68069752,4426.4,4426.3,0.3079]
[1756983437131,10.76029752,4426.4,4426.3,0.004]
[1756983437502,11.19789752,4426.4,4426.3,0.004]
[1756983438624,11.67669752,4426.4,4426.3,0.004]
[1756983439600,13.34169752,4426.4,4426.3,0.004]
[1756983439827,15.60960549,4426.4,4426.3,0.004]
[1756983441648,8.31569752,4426.4,4426.3,0.004]
[1756983441849,8.31569752,4426.4,4426.3,0.7374]
[1756983441850,12.13769752,4426.4,4426.3,0.7374]
[1756983442032,11.34569752,4426.4,4426.3,1.2164]
[1756983442603,12.13769752,4426.4,4426.3,0.3079]
[1756983443403,12.13769752,4426.4,4426.3,1.2164]
[1756983443801,2.26532529,4426.4,4426.3,1.2164]
[1756983444001,7.52449752,4426.4,4426.3,1.2164]
[1756983444309,11.34649752,4426.4,4426.3,1.2164]
[1756983445129,11.34649752,4426.4,4426.3,0.004]
[1756983446443,11.34649752,4426.4,4426.3,0.3079]
[1756983447117,11.34649752,4426.4,4426.3,0.3329]
[1756983448957,11.34649752,4426.4,4426.3,0.8119]
[1756983449163,11.34649752,4426.4,4426.3,1.2414]
[1756983452020,7.52449752,4426.4,4426.3,1.2414]
[1756983452230,11.34649752,4426.4,4426.3,1.2414]
[1756983452435,7.52449752,4426.4,4426.3,0.8119]
[1756983452641,11.34649752,4426.4,4426.3,1.2783]
[1756983454836,11.34649752,4426.4,4426.3,0.7993]
[1756983455062,11.34649752,4426.4,4426.3,0.3329]
[1756983455647,11.34649752,4426.4,4426.3,0.029]
[1756983456162,11.34649752,4426.4,4426.3,0.3173]
[1756983456460,11.34649752,4426.4,4426.3,0.029]
[1756983456763,11.34649752,4426.4,4426.3,0.3173]
[1756983456967,7.52449752,4426.4,4426.3,0.3173]
[1756983457169,11.34649752,4426.4,4426.3,0.3173]
[1756983457756,11.64899752,4426.4,4426.3,0.029]
[1756983458076,2.25968274,4425.4,4425.3,0.1128]
[1756983458275,2.2597338,4425.3,4425.2,0.4728]
[1756983458568,2.25983593,4425.1,4425.0,0.4664]
[1756983458768,6.56936122,4425.1,4425.0,0.4664]
[1756983458940,6.56936122,4425.1,4425.0,0.7547]
[1756983459142,6.56936122,4425.1,4425.0,0.2883]
[1756983459758,9.56936122,4425.1,4425.0,0.2883]
[1756983459966,0.792,4425.0,4423.5,2.26060831]
[1756983460152,2.46921479,4425.1,4424.2,0.4728]
[1756983460153,0.1128,4424.8,4424.2,0.4728]
[1756983460352,3.0,4424.6,4424.3,0.5792]
[1756983460639,3.0,4424.4,4424.3,0.5792]
[1756983460862,3.48752529,4424.4,4424.3,0.8675]
[1756983461168,3.48752529,4424.4,4424.3,1.3403]
[1756983461673,3.48672529,4424.4,4424.3,1.3403]
[1756983461839,3.48672529,4424.4,4424.3,1.47433]
[1756983462269,5.74691876,4424.4,4424.3,1.3403]
[1756983462475,3.48672529,4424.4,4424.3,1.2275]
[1756983462880,0.48672529,4424.4,4424.3,1.2275]
[1756983464147,2.26019347,4424.4,4424.3,1.2275]
[1756983464749,2.26019347,4424.4,4424.3,0.7611]
[1756983465174,2.26019347,4424.4,4424.3,1.2275]
[1756983465757,2.26019347,4424.4,4424.3,0.2883]
[1756983465948,2.26019347,4424.4,4424.3,1.2275]
[1756983466149,6.08219347,4424.4,4424.3,1.2275]
[1756983467667,3.822,4424.4,4424.1,0.1128]
[1756983467876,3.822,4424.4,4423.8,0.5856]
[1756983467877,2.26024455,4424.3,4423.8,0.5856]
[1756983468186,2.37304455,4424.3,4423.8,0.5856]
[1756983468485,0.79238098,4424.3,4423.5,0.1128]
[1756983468672,9.08229564,4424.2,4423.6,0.4728]
[1756983468863,2.26029564,4424.2,4424.1,0.2883]
[1756983469066,3.822,4425.7,4424.1,10.60213619]
[1756983469270,2.25991281,4425.0,4424.2,0.9392]
[1756983469467,2.259887,4425.0,4424.9,0.2883]
[1756983469667,2.26032427,4424.2,4423.9,0.9392]
[1756983469879,2.26032427,4424.2,4424.1,0.2883]
[1756983470600,3.3025,4424.2,4423.6,0.4728]
[1756983470767,2.26055112,4423.7,4423.6,0.4728]
[1756983470974,2.26055112,4423.7,4423.6,1.2275]
[1756983471172,2.26051065,4423.8,4423.6,1.35025]
[1756983471372,3.831,4424.0,4423.7,0.9392]
[1756983471694,2.26044984,4423.9,4423.6,0.12275]
[1756983471896,2.26032626,4424.2,4423.9,0.2883]
[1756983472200,2.26034673,4424.1,4424.0,0.9392]
[1756983472495,2.26041537,4424.0,4423.2,11.63544208]
[1756983472795,2.26041537,4424.0,4423.9,0.2883]
[1756983473108,2.26039783,4424.0,4423.9,0.2883]
[1756983473267,2.26039783,4424.0,4423.9,0.7547]
[1756983473471,2.26039783,4424.0,4423.9,1.2275]
[1756983475478,2.26036172,4424.1,4423.9,1.2275]
[1756983475812,2.26036172,4424.1,4424.0,0.9392]
[1756983476029,2.26036172,4424.1,4424.0,0.2883]
[1756983476191,0.3025,4424.1,4423.6,0.4728]
[1756983476517,0.3025,4424.1,4423.3,0.4728]
[1756983476723,4.7817,4424.0,4423.2,0.004]
[1756983476876,2.26075554,4423.3,4423.2,0.004]
[1756983477358,2.26075554,4423.3,4423.2,0.7587]
[1756983478022,2.26075554,4423.3,4423.2,0.2923]
[1756983478353,2.26075554,4423.3,4423.2,0.004]
[1756983478738,2.26075554,4423.3,4423.2,0.2923]
[1756983479031,2.26075554,4423.3,4423.2,0.4051]
[1756983479244,2.26075554,4423.3,4423.2,0.8715]
[1756983479439,2.26071786,4423.4,4423.2,0.8715]
[1756983479644,2.26071786,4423.4,4423.2,0.8779]
[1756983479851,2.26071786,4423.4,4423.2,1.3443]
[1756983480046,2.26071786,4423.4,4423.2,0.8715]
[1756983480222,2.26075554,4423.3,4423.2,0.004]
[1756983480426,0.1128,4423.3,4423.2,0.004]
[1756983480618,4.38641549,4423.8,4423.2,1.1951]
[1756983480619,2.26063514,4423.6,4423.2,1.1951]
[1756983480821,2.26066458,4423.5,4423.2,1.1951]
[1756983481133,2.26044892,4423.9,4423.3,0.8878]
[1756983481338,0.48647851,4423.8,4423.3,0.1128]
[1756983481537,5.26050002,4423.8,4423.7,0.3033]
[1756983482127,2.26050002,4423.8,4423.7,0.3033]
[1756983482355,0.1128,4423.9,4423.7,0.3033]
[1756983482564,3.831,4424.1,4423.7,0.3033]
[1756983482565,5.74690893,4424.0,4423.8,0.8878]
[1756983482724,5.26044892,4423.9,4423.8,0.8878]
[1756983482929,2.26040102,4424.0,4423.9,0.3033]
[1756983483129,2.26040102,4424.0,4423.9,0.735]
[1756983483360,0.1128,4424.1,4423.9,0.3033]
[1756983483562,0.001,4424.4,4424.0,0.8878]
[1756983483765,3.48762314,4424.4,4424.0,0.8878]
[1756983483933,0.48662314,4424.3,4424.1,0.4317]
[1756983484133,0.48662314,4424.3,4424.2,0.3033]
[1756983484134,5.74686769,4424.3,4424.2,0.3033]
[1756983484340,2.26034673,4424.1,4423.9,0.1128]
[1756983484658,2.26035752,4424.1,4423.9,0.1128]
[1756983485275,3.0,4424.2,4423.9,0.1128]
[1756983485477,0.48697597,4424.1,4423.9,0.1128]
[1756983485647,2.74736295,4424.1,4423.9,0.1128]
[1756983485848,2.26038698,4424.1,4423.9,0.1128]
[1756983486042,3.25284955,4424.0,4423.9,0.1128]
[1756983486652,3.74006474,4424.0,4423.9,0.1128]
[1756983486844,3.73926474,4424.0,4423.9,0.1128]
[1756983487655,1.47886691,4424.0,4423.9,0.1128]
[1756983488049,1.16676691,4424.0,4423.9,0.1128]
[1756983489186,3.42716474,4424.0,4423.9,0.1128]
[1756983489679,1.47966691,4424.0,4423.9,0.1128]
[1756983489879,3.74006474,4424.0,4423.9,0.1128]
[1756983490353,2.26060107,4423.7,4423.5,3.826]
[1756983490669,3.06134532,4423.6,4423.5,3.826]
[1756983491045,3.74098633,4423.6,4423.5,3.826]
[1756983491363,3.42808633,4423.6,4423.5,3.826]
[1756983491677,0.67964101,4423.6,4423.5,5.0171]
[1756983492044,0.67964101,4423.6,4423.5,4.1293]
[1756983492045,3.42806872,4423.6,4423.5,4.1293]